[Event "Live Chess"]
[Site "Chess.com"]
[Date "2023.05.21"]
[Round "-"]
[White "BillythekidFellowes"]
[Black "Doge_Dandolo"]
[Result "1-0"]
[WhiteElo "2107"]
[BlackElo "1870"]
[TimeControl "300"]
[EndTime "7:40:47 PDT"]
[Termination "BillythekidFellowes won by checkmate"]

1. e3 {[%clk 0:04:52.6]} 1... g6 {[%clk 0:04:58]} 2. c4 {[%clk 0:04:49.7]} 2...
Bg7 {[%clk 0:04:56.9]} 3. d4 {[%clk 0:04:49.6]} 3... c5 {[%clk 0:04:54.8]} 4.
Nc3 {[%clk 0:04:49.5]} 4... cxd4 {[%clk 0:04:53.4]} 5. exd4 {[%clk 0:04:47.7]}
5... Nf6 {[%clk 0:04:50.7]} 6. Nf3 {[%clk 0:04:45.7]} 6... d5 {[%clk 0:04:48.3]}
7. Bf4 {[%clk 0:04:44.1]} 7... O-O {[%clk 0:04:46.8]} 8. Nb5 {[%clk 0:04:42.1]}
8... Na6 {[%clk 0:04:42.6]} 9. Be2 {[%clk 0:04:39.8]} 9... dxc4 {[%clk
0:04:40.7]} 10. O-O {[%clk 0:04:39.1]} 10... Be6 {[%clk 0:04:36.9]} 11. Ng5
{[%clk 0:04:36.9]} 11... Bd5 {[%clk 0:04:32.1]} 12. Nc3 {[%clk 0:04:31.6]} 12...
Rc8 {[%clk 0:04:21.1]} 13. Re1 {[%clk 0:04:26.8]} 13... Nb4 {[%clk 0:04:13.3]}
14. a3 {[%clk 0:04:20.7]} 14... Nc6 {[%clk 0:04:07.6]} 15. Bf3 {[%clk
0:04:16.9]} 15... e6 {[%clk 0:04:02.7]} 16. Rc1 {[%clk 0:04:10]} 16... a6 {[%clk
0:04:00.7]} 17. Bxd5 {[%clk 0:03:54.3]} 17... Nxd5 {[%clk 0:03:56.8]} 18. Nxd5
{[%clk 0:03:51.7]} 18... exd5 {[%clk 0:03:52.9]} 19. Nf3 {[%clk 0:03:49.4]}
19... Re8 {[%clk 0:03:44.1]} 20. Qd2 {[%clk 0:03:44.9]} 20... Qd7 {[%clk
0:03:37.4]} 21. Ne5 {[%clk 0:03:32.7]} 21... Nxe5 {[%clk 0:03:34.5]} 22. Bxe5
{[%clk 0:03:31.8]} 22... Bxe5 {[%clk 0:03:32.7]} 23. dxe5 {[%clk 0:03:31.7]}
23... Red8 {[%clk 0:03:27]} 24. f4 {[%clk 0:03:29.9]} 24... b5 {[%clk
0:03:18.8]} 25. h3 {[%clk 0:03:26.9]} 25... d4 {[%clk 0:03:16.3]} 26. g4 {[%clk
0:03:25.1]} 26... d3 {[%clk 0:03:15]} 27. f5 {[%clk 0:03:21.7]} 27... gxf5
{[%clk 0:03:11.9]} 28. Qg5+ {[%clk 0:03:20.3]} 28... Kh8 {[%clk 0:03:07.6]} 29.
Qf6+ {[%clk 0:03:18.4]} 29... Kg8 {[%clk 0:03:05.7]} 30. gxf5 {[%clk 0:03:17.8]}
30... Qd4+ {[%clk 0:02:59]} 31. Kh1 {[%clk 0:03:11.5]} 31... Qd5+ {[%clk
0:02:56.3]} 32. Kh2 {[%clk 0:03:09.6]} 32... d2 {[%clk 0:02:48.1]} 33. Rg1+
{[%clk 0:03:04]} 33... Kf8 {[%clk 0:02:47.1]} 34. e6 {[%clk 0:03:02.2]} 34...
Qd6+ {[%clk 0:02:42.2]} 35. Kg2 {[%clk 0:02:57.5]} 35... Qd5+ {[%clk 0:02:36.2]}
36. Kg3 {[%clk 0:02:56.1]} 36... Qd3+ {[%clk 0:02:30.1]} 37. Kh4 {[%clk
0:02:48.8]} 37... Rd4+ {[%clk 0:02:26.5]} 38. Rg4 {[%clk 0:02:47.5]} 38... Rxg4+
{[%clk 0:02:20.6]} 39. hxg4 {[%clk 0:02:45.6]} 39... Rc7 {[%clk 0:02:05.9]} 40.
Rd1 {[%clk 0:02:32]} 40... Ke8 {[%clk 0:01:48.9]} 41. Qe5 {[%clk 0:02:24.6]}
41... Rc8 {[%clk 0:01:40.6]} 42. f6 {[%clk 0:02:16.1]} 42... fxe6 {[%clk
0:01:26.7]} 43. Qxe6+ {[%clk 0:02:16]} 43... Kf8 {[%clk 0:01:25]} 44. Qe7+
{[%clk 0:02:15]} 44... Kg8 {[%clk 0:01:24.2]} 45. Qg7# {[%clk 0:02:14.9]} 1-0

[Event "Live Chess"]
[Site "Chess.com"]
[Date "2023.05.21"]
[Round "-"]
[White "Olisingapore"]
[Black "NotHarryV"]
[Result "1-0"]
[WhiteElo "1785"]
[BlackElo "1511"]
[TimeControl "300"]
[EndTime "7:41:03 PDT"]
[Termination "Olisingapore won by resignation"]

1. d4 {[%clk 0:04:58.5]} 1... Nf6 {[%clk 0:04:57.6]} 2. c4 {[%clk 0:04:58.4]}
2... e6 {[%clk 0:04:56.2]} 3. g3 {[%clk 0:04:57.9]} 3... d5 {[%clk 0:04:47.8]}
4. Bg2 {[%clk 0:04:57.2]} 4... c5 {[%clk 0:04:39.5]} 5. Nf3 {[%clk 0:04:56.6]}
5... cxd4 {[%clk 0:04:38]} 6. Qxd4 {[%clk 0:04:53.6]} 6... Nc6 {[%clk 0:04:36]}
7. Qd1 {[%clk 0:04:51.8]} 7... Bc5 {[%clk 0:04:04.6]} 8. O-O {[%clk 0:04:48.7]}
8... O-O {[%clk 0:04:00.5]} 9. Bd2 {[%clk 0:04:39.7]} 9... Ne4 {[%clk
0:03:56.2]} 10. Qc2 {[%clk 0:04:14.9]} 10... Nxd2 {[%clk 0:03:43]} 11. Nbxd2
{[%clk 0:04:14.8]} 11... d4 {[%clk 0:03:27.1]} 12. Nb3 {[%clk 0:04:09.9]} 12...
Be7 {[%clk 0:03:02.1]} 13. Rfd1 {[%clk 0:04:06.1]} 13... Bf6 {[%clk 0:03:01]}
14. e3 {[%clk 0:03:43.6]} 14... e5 {[%clk 0:02:54]} 15. exd4 {[%clk 0:03:39.9]}
15... exd4 {[%clk 0:02:52.3]} 16. Rd3 {[%clk 0:03:33]} 16... Bf5 {[%clk
0:02:50.1]} 17. Rad1 {[%clk 0:03:19.9]} 17... Bxd3 {[%clk 0:02:46.8]} 18. Rxd3
{[%clk 0:03:19.8]} 18... Qc7 {[%clk 0:02:27.4]} 19. a3 {[%clk 0:03:06.6]} 19...
Rad8 {[%clk 0:02:21.3]} 20. Nc1 {[%clk 0:02:58.5]} 20... Rfe8 {[%clk 0:02:19.8]}
21. Rd1 {[%clk 0:02:53.2]} 21... Ne5 {[%clk 0:02:07.8]} 22. Nxe5 {[%clk
0:02:48.4]} 22... Bxe5 {[%clk 0:02:06.6]} 23. b4 {[%clk 0:02:45.6]} 23... b5
{[%clk 0:01:52]} 24. c5 {[%clk 0:02:41.6]} 24... Bf6 {[%clk 0:01:46]} 25. Ne2
{[%clk 0:02:36.2]} 25... a6 {[%clk 0:01:29.5]} 26. Nf4 {[%clk 0:02:14.3]} 26...
Qe5 {[%clk 0:01:24.8]} 27. Nd3 {[%clk 0:02:09]} 27... Qe2 {[%clk 0:01:21.9]} 28.
Qxe2 {[%clk 0:01:51.3]} 28... Rxe2 {[%clk 0:01:21.8]} 29. Bb7 {[%clk 0:01:45.1]}
29... Ra2 {[%clk 0:01:17]} 30. c6 {[%clk 0:01:40.9]} 30... Rxa3 {[%clk
0:01:00.9]} 31. c7 {[%clk 0:01:39.5]} 31... Re8 {[%clk 0:00:56.3]} 32. c8=Q
{[%clk 0:01:34.9]} 32... Rxc8 {[%clk 0:00:55.5]} 33. Bxc8 {[%clk 0:01:34.8]}
33... Be7 {[%clk 0:00:47.7]} 34. Nc5 {[%clk 0:01:30.5]} 34... Bxc5 {[%clk
0:00:45.7]} 35. bxc5 {[%clk 0:01:29.5]} 35... d3 {[%clk 0:00:41.8]} 36. c6
{[%clk 0:01:25.3]} 36... Rc3 {[%clk 0:00:40.6]} 37. Bxa6 {[%clk 0:01:21.7]}
37... Rxc6 {[%clk 0:00:30.5]} 38. Bxb5 {[%clk 0:01:18.9]} 38... Rd6 {[%clk
0:00:25.3]} 39. Rxd3 {[%clk 0:01:13]} 39... Rxd3 {[%clk 0:00:24.5]} 40. Bxd3
{[%clk 0:01:12.7]} 1-0

[Event "Live Chess"]
[Site "Chess.com"]
[Date "2023.05.21"]
[Round "-"]
[White "Conradical12"]
[Black "CheckThis4"]
[Result "0-1"]
[WhiteElo "1534"]
[BlackElo "2528"]
[TimeControl "300"]
[EndTime "7:41:09 PDT"]
[Termination "CheckThis4 won by checkmate"]

1. e4 {[%clk 0:04:59.2]} 1... d5 {[%clk 0:04:58.8]} 2. exd5 {[%clk 0:04:56.9]}
2... Nf6 {[%clk 0:04:58.3]} 3. Nf3 {[%clk 0:04:55.9]} 3... Bg4 {[%clk 0:04:57]}
4. d4 {[%clk 0:04:54.7]} 4... Qxd5 {[%clk 0:04:55.2]} 5. Be2 {[%clk 0:04:52.5]}
5... Nc6 {[%clk 0:04:54.2]} 6. Be3 {[%clk 0:04:50.1]} 6... O-O-O {[%clk
0:04:50.3]} 7. c3 {[%clk 0:04:49]} 7... e5 {[%clk 0:04:44.6]} 8. O-O {[%clk
0:04:43.6]} 8... exd4 {[%clk 0:04:39.7]} 9. Nxd4 {[%clk 0:04:41.5]} 9... Bxe2
{[%clk 0:04:36.1]} 10. Qxe2 {[%clk 0:04:39.9]} 10... Bc5 {[%clk 0:04:33.6]} 11.
Rd1 {[%clk 0:04:33.3]} 11... Rhe8 {[%clk 0:04:30.4]} 12. Qf1 {[%clk 0:04:30.4]}
12... Nxd4 {[%clk 0:04:23.6]} 13. Bxd4 {[%clk 0:04:27.8]} 13... Bxd4 {[%clk
0:04:22.3]} 14. Rxd4 {[%clk 0:04:24.8]} 14... Qf5 {[%clk 0:04:09.8]} 15. Rxd8+
{[%clk 0:04:13.3]} 15... Rxd8 {[%clk 0:04:09.7]} 16. Na3 {[%clk 0:04:10.6]}
16... Rd2 {[%clk 0:04:07.2]} 17. Nc4 {[%clk 0:04:04.6]} 17... Rd8 {[%clk
0:03:46]} 18. Re1 {[%clk 0:03:56.2]} 18... a6 {[%clk 0:03:44.3]} 19. Ne5 {[%clk
0:03:50.4]} 19... Ne4 {[%clk 0:03:32.3]} 20. f3 {[%clk 0:03:41]} 20... Qxe5
{[%clk 0:03:26]} 21. Rxe4 {[%clk 0:03:38.3]} 21... Qc5+ {[%clk 0:03:23.3]} 22.
Qf2 {[%clk 0:03:33.9]} 22... Rd1+ {[%clk 0:03:20.6]} 23. Re1 {[%clk 0:03:29.2]}
23... Rxe1# {[%clk 0:03:19.7]} 0-1

[Event "Live Chess"]
[Site "Chess.com"]
[Date "2023.05.21"]
[Round "-"]
[White "mach247"]
[Black "Hacker_2009"]
[Result "0-1"]
[WhiteElo "1331"]
[BlackElo "1953"]
[TimeControl "300"]
[EndTime "7:41:22 PDT"]
[Termination "Hacker_2009 won by resignation"]

1. d4 {[%clk 0:04:58.9]} 1... Nf6 {[%clk 0:04:58.7]} 2. Nc3 {[%clk 0:04:58.1]}
2... d5 {[%clk 0:04:56.7]} 3. Bf4 {[%clk 0:04:56.7]} 3... a6 {[%clk 0:04:54.7]}
4. e3 {[%clk 0:04:54.4]} 4... e6 {[%clk 0:04:40.3]} 5. a3 {[%clk 0:04:50.3]}
5... Be7 {[%clk 0:04:35.8]} 6. Bd3 {[%clk 0:04:49.3]} 6... O-O {[%clk
0:04:34.5]} 7. Nf3 {[%clk 0:04:48.9]} 7... b6 {[%clk 0:04:33.3]} 8. h3 {[%clk
0:04:48]} 8... Bb7 {[%clk 0:04:31.9]} 9. Ne5 {[%clk 0:04:42.7]} 9... c5 {[%clk
0:04:07.3]} 10. g4 {[%clk 0:04:27.8]} 10... Nc6 {[%clk 0:04:04.9]} 11. Be2
{[%clk 0:04:18.2]} 11... cxd4 {[%clk 0:04:00.5]} 12. exd4 {[%clk 0:04:16.3]}
12... Ne4 {[%clk 0:03:58.1]} 13. Nxe4 {[%clk 0:04:14.9]} 13... dxe4 {[%clk
0:03:55]} 14. Nxc6 {[%clk 0:04:12.9]} 14... Bxc6 {[%clk 0:03:53.9]} 15. c3
{[%clk 0:04:04.1]} 15... e3 {[%clk 0:03:43.9]} 16. Rg1 {[%clk 0:03:55]} 16...
exf2+ {[%clk 0:03:42.5]} 17. Kxf2 {[%clk 0:03:54.3]} 17... Bh4+ {[%clk
0:03:41.7]} 18. Kf1 {[%clk 0:03:49.4]} 18... Qf6 {[%clk 0:03:40.1]} 19. Qd2
{[%clk 0:03:44.4]} 19... Bg5 {[%clk 0:03:36.9]} 20. Ke1 {[%clk 0:03:00.9]} 20...
Bxf4 {[%clk 0:03:34]} 21. Qd3 {[%clk 0:02:59.6]} 21... Qh4+ {[%clk 0:03:26.9]}
22. Kd1 {[%clk 0:02:57.7]} 22... Qf2 {[%clk 0:03:26.3]} 23. Rf1 {[%clk
0:02:55.8]} 23... Qg3 {[%clk 0:03:24.2]} 24. Qxg3 {[%clk 0:02:45.6]} 24... Bxg3
{[%clk 0:03:23.2]} 25. Kc2 {[%clk 0:02:36]} 25... b5 {[%clk 0:03:12.6]} 26. h4
{[%clk 0:02:25.5]} 26... Bd5 {[%clk 0:03:09]} 27. Bd3 {[%clk 0:02:23.5]} 27...
Rfc8 {[%clk 0:03:06.8]} 28. Rg1 {[%clk 0:02:21.9]} 28... Bd6 {[%clk 0:03:05.4]}
29. h5 {[%clk 0:02:16.1]} 29... Rab8 {[%clk 0:03:04.6]} 30. g5 {[%clk
0:02:14.5]} 30... a5 {[%clk 0:03:03.3]} 31. g6 {[%clk 0:02:13.1]} 31... fxg6
{[%clk 0:03:02]} 32. hxg6 {[%clk 0:02:12.4]} 32... h6 {[%clk 0:03:01.6]} 33. b4
{[%clk 0:02:02.2]} 33... axb4 {[%clk 0:02:59.6]} 34. axb4 {[%clk 0:02:01.2]}
34... Bxb4 {[%clk 0:02:58.9]} 0-1

[Event "Live Chess"]
[Site "Chess.com"]
[Date "2023.05.21"]
[Round "-"]
[White "EdenHazard8"]
[Black "GEMdzq"]
[Result "0-1"]
[WhiteElo "1929"]
[BlackElo "2227"]
[TimeControl "300"]
[EndTime "7:41:22 PDT"]
[Termination "GEMdzq won by resignation"]

1. e4 {[%clk 0:04:59.2]} 1... d6 {[%clk 0:04:59.2]} 2. d4 {[%clk 0:04:57.8]}
2... Nf6 {[%clk 0:04:58.8]} 3. Nc3 {[%clk 0:04:56.9]} 3... g6 {[%clk 0:04:58.2]}
4. f3 {[%clk 0:04:56.1]} 4... Bg7 {[%clk 0:04:57.3]} 5. Be3 {[%clk 0:04:55.6]}
5... c6 {[%clk 0:04:56.9]} 6. Qd2 {[%clk 0:04:55.2]} 6... b5 {[%clk 0:04:56.4]}
7. O-O-O {[%clk 0:04:54.9]} 7... b4 {[%clk 0:04:55.4]} 8. Nb1 {[%clk 0:04:53.3]}
8... a5 {[%clk 0:04:54.7]} 9. h4 {[%clk 0:04:52.6]} 9... h5 {[%clk 0:04:53.1]}
10. Bc4 {[%clk 0:04:50.7]} 10... Na6 {[%clk 0:04:37.5]} 11. Rf1 {[%clk
0:04:39.5]} 11... Nc7 {[%clk 0:04:34.1]} 12. Nh3 {[%clk 0:04:37.9]} 12... d5
{[%clk 0:04:32.1]} 13. exd5 {[%clk 0:04:36.3]} 13... Nfxd5 {[%clk 0:04:25.9]}
14. Ng5 {[%clk 0:04:34.7]} 14... O-O {[%clk 0:04:22.5]} 15. Bf2 {[%clk
0:04:32.2]} 15... Ne6 {[%clk 0:04:14.6]} 16. g4 {[%clk 0:04:26.9]} 16... Nef4
{[%clk 0:04:02.4]} 17. gxh5 {[%clk 0:04:21.9]} 17... Nxh5 {[%clk 0:04:00.1]} 18.
Rhg1 {[%clk 0:04:11]} 18... Bf5 {[%clk 0:03:56.6]} 19. Be3 {[%clk 0:04:06.4]}
19... Nxe3 {[%clk 0:03:54.2]} 20. Qxe3 {[%clk 0:04:06.3]} 20... Qxd4 {[%clk
0:03:51.8]} 0-1

[Event "Live Chess"]
[Site "Chess.com"]
[Date "2023.05.21"]
[Round "-"]
[White "Ian-Morley"]
[Black "AttackingSnowLeopard"]
[Result "0-1"]
[WhiteElo "1089"]
[BlackElo "2156"]
[TimeControl "300"]
[EndTime "7:41:37 PDT"]
[Termination "AttackingSnowLeopard won by resignation"]

1. e4 {[%clk 0:04:58.9]} 1... e5 {[%clk 0:04:58.3]} 2. Nf3 {[%clk 0:04:57.8]}
2... Nc6 {[%clk 0:04:57]} 3. Bc4 {[%clk 0:04:57.2]} 3... Bc5 {[%clk 0:04:55.3]}
4. Ng5 {[%clk 0:04:54.5]} 4... Qxg5 {[%clk 0:04:53.1]} 5. O-O {[%clk 0:04:51.2]}
5... Qg6 {[%clk 0:04:49.2]} 6. d3 {[%clk 0:04:46.7]} 6... d6 {[%clk 0:04:46.6]}
7. Re1 {[%clk 0:04:40.7]} 7... Nf6 {[%clk 0:04:43.7]} 8. Be3 {[%clk 0:04:39.7]}
8... Bxe3 {[%clk 0:04:41.8]} 9. fxe3 {[%clk 0:04:38.8]} 9... Bg4 {[%clk
0:04:39.8]} 10. Qd2 {[%clk 0:04:35.6]} 10... O-O-O {[%clk 0:04:39.1]} 11. Na3
{[%clk 0:04:31]} 11... a6 {[%clk 0:04:37.3]} 12. Bd5 {[%clk 0:04:29.5]} 12...
Nxd5 {[%clk 0:04:35]} 13. exd5 {[%clk 0:04:28.6]} 13... Ne7 {[%clk 0:04:34.7]}
14. Nc4 {[%clk 0:04:27.9]} 14... Nxd5 {[%clk 0:04:32.2]} 15. e4 {[%clk
0:04:26.5]} 15... Nf4 {[%clk 0:04:31.2]} 16. g3 {[%clk 0:04:24.4]} 16... Nh3+
{[%clk 0:04:28.8]} 17. Kg2 {[%clk 0:04:23.5]} 17... f5 {[%clk 0:04:27.9]} 18.
Qb4 {[%clk 0:04:16.5]} 18... fxe4 {[%clk 0:04:20.7]} 19. Nxd6+ {[%clk
0:04:15.2]} 19... Rxd6 {[%clk 0:04:16.9]} 20. Qxe4 {[%clk 0:04:10.4]} 20... Qe6
{[%clk 0:04:13]} 21. Qxe5 {[%clk 0:04:06.4]} 21... Qd5+ {[%clk 0:03:32]} 22.
Qxd5 {[%clk 0:04:02.9]} 22... Rxd5 {[%clk 0:03:31.9]} 23. Re7 {[%clk 0:03:59.1]}
23... Rf8 {[%clk 0:03:29.1]} 24. Rf1 {[%clk 0:03:55.6]} 24... Rxf1 {[%clk
0:03:25.4]} 25. Kxf1 {[%clk 0:03:54.5]} 25... Rf5+ {[%clk 0:03:24.8]} 26. Ke1
{[%clk 0:03:52]} 26... Ng5 {[%clk 0:03:22.6]} 27. Rxg7 {[%clk 0:03:50.1]} 27...
Nf3+ {[%clk 0:03:22.1]} 28. Ke2 {[%clk 0:03:45]} 28... Nxh2+ {[%clk 0:03:20.7]}
29. Kd2 {[%clk 0:03:44.6]} 29... Nf3+ {[%clk 0:03:18.7]} 30. Kc3 {[%clk
0:03:43.5]} 30... h5 {[%clk 0:03:17.4]} 31. Rg8+ {[%clk 0:03:42.3]} 31... Kd7
{[%clk 0:03:08.5]} 32. Rg7+ {[%clk 0:03:41.4]} 32... Kd6 {[%clk 0:03:07.3]} 33.
Rg6+ {[%clk 0:03:39.6]} 33... Ke7 {[%clk 0:03:06.8]} 34. Rg7+ {[%clk 0:03:38.8]}
34... Rf7 {[%clk 0:03:02.3]} 35. Rg8 {[%clk 0:03:35.4]} 35... Nh2 {[%clk
0:03:00.7]} 36. Rc8 {[%clk 0:03:33.2]} 36... Bxc8 {[%clk 0:02:59.5]} 0-1

[Event "Live Chess"]
[Site "Chess.com"]
[Date "2023.05.21"]
[Round "-"]
[White "PantherCal"]
[Black "Singapourfeuj"]
[Result "0-1"]
[WhiteElo "1859"]
[BlackElo "2196"]
[TimeControl "300"]
[EndTime "7:41:37 PDT"]
[Termination "Singapourfeuj won by resignation"]

1. e4 {[%clk 0:04:59.4]} 1... e6 {[%clk 0:04:58.6]} 2. d4 {[%clk 0:04:57.8]}
2... d5 {[%clk 0:04:57.7]} 3. exd5 {[%clk 0:04:57.7]} 3... exd5 {[%clk
0:04:56.4]} 4. Bd3 {[%clk 0:04:57.3]} 4... Bd6 {[%clk 0:04:55.2]} 5. Nf3 {[%clk
0:04:56.5]} 5... Ne7 {[%clk 0:04:54.3]} 6. O-O {[%clk 0:04:56.4]} 6... Bg4
{[%clk 0:04:53]} 7. Bg5 {[%clk 0:04:54.5]} 7... f6 {[%clk 0:04:51.2]} 8. Bh4
{[%clk 0:04:53.1]} 8... Nbc6 {[%clk 0:04:50]} 9. c3 {[%clk 0:04:51.9]} 9... Qd7
{[%clk 0:04:49]} 10. Nbd2 {[%clk 0:04:51.3]} 10... O-O-O {[%clk 0:04:47.8]} 11.
b4 {[%clk 0:04:50.9]} 11... g5 {[%clk 0:04:42.4]} 12. Bg3 {[%clk 0:04:50]} 12...
Ng6 {[%clk 0:04:41.3]} 13. Nb3 {[%clk 0:04:46.7]} 13... Kb8 {[%clk 0:04:35.1]}
14. b5 {[%clk 0:04:45.3]} 14... Nce7 {[%clk 0:04:33.6]} 15. Nc5 {[%clk
0:04:35.9]} 15... Bxc5 {[%clk 0:04:30.6]} 16. dxc5 {[%clk 0:04:35.5]} 16... Ne5
{[%clk 0:04:28.8]} 17. Bxe5 {[%clk 0:04:27.6]} 17... fxe5 {[%clk 0:04:26.8]} 18.
Nxe5 {[%clk 0:04:27.5]} 18... Bxd1 {[%clk 0:04:24.5]} 19. Nxd7+ {[%clk
0:04:26.6]} 19... Rxd7 {[%clk 0:04:23.7]} 20. Raxd1 {[%clk 0:04:25.5]} 20... c6
{[%clk 0:04:21.6]} 21. a4 {[%clk 0:04:16.2]} 21... b6 {[%clk 0:04:17.3]} 22.
cxb6 {[%clk 0:04:13.8]} 22... axb6 {[%clk 0:04:16.4]} 23. Rfe1 {[%clk
0:04:09.8]} 23... Kc7 {[%clk 0:04:14.4]} 24. Bf5 {[%clk 0:04:06.5]} 24... Nxf5
{[%clk 0:04:12.1]} 25. Re6 {[%clk 0:04:00.3]} 25... Rd6 {[%clk 0:04:09.1]} 26.
Re5 {[%clk 0:03:50.8]} 26... Rf8 {[%clk 0:04:07.8]} 27. Rde1 {[%clk 0:03:46.1]}
27... c5 {[%clk 0:04:00.4]} 28. g4 {[%clk 0:03:42.9]} 28... Nh4 {[%clk
0:03:59.1]} 29. Re7+ {[%clk 0:03:36.6]} 29... Rd7 {[%clk 0:03:57.1]} 30. Kf1
{[%clk 0:03:35.8]} 30... Nf3 {[%clk 0:03:53.5]} 31. R1e3 {[%clk 0:03:30.6]}
31... Nxh2+ {[%clk 0:03:46.4]} 32. Kg2 {[%clk 0:03:30.3]} 32... Nxg4 {[%clk
0:03:45.4]} 0-1

[Event "Live Chess"]
[Site "Chess.com"]
[Date "2023.05.21"]
[Round "-"]
[White "LiamClery2020"]
[Black "ramses-IIG"]
[Result "1-0"]
[WhiteElo "1997"]
[BlackElo "870"]
[TimeControl "300"]
[EndTime "7:41:38 PDT"]
[Termination "LiamClery2020 won by checkmate"]

1. e4 {[%clk 0:04:59.3]} 1... d5 {[%clk 0:04:59.1]} 2. exd5 {[%clk 0:04:58.5]}
2... Qxd5 {[%clk 0:04:58.6]} 3. Nc3 {[%clk 0:04:57.9]} 3... Qe6+ {[%clk
0:04:57]} 4. Be2 {[%clk 0:04:57]} 4... Qg6 {[%clk 0:04:56.9]} 5. Bf3 {[%clk
0:04:55.7]} 5... c6 {[%clk 0:04:51.2]} 6. d4 {[%clk 0:04:54.7]} 6... e6 {[%clk
0:04:49.1]} 7. Be3 {[%clk 0:04:52.9]} 7... Qf6 {[%clk 0:04:48.2]} 8. Qd2 {[%clk
0:04:51.2]} 8... Bb4 {[%clk 0:04:46]} 9. O-O-O {[%clk 0:04:49.9]} 9... Ne7
{[%clk 0:04:44]} 10. Nge2 {[%clk 0:04:47.6]} 10... O-O {[%clk 0:04:42]} 11. a3
{[%clk 0:04:44.7]} 11... Ba5 {[%clk 0:04:39]} 12. Bg5 {[%clk 0:04:40.6]} 12...
Qg6 {[%clk 0:04:11.5]} 13. Bxe7 {[%clk 0:04:37.7]} 13... Re8 {[%clk 0:04:11.4]}
14. Bh4 {[%clk 0:04:31.4]} 14... Nd7 {[%clk 0:04:07.1]} 15. Be4 {[%clk
0:04:28.4]} 15... Qg4 {[%clk 0:04:01.7]} 16. Bg3 {[%clk 0:04:24]} 16... f5
{[%clk 0:03:39.4]} 17. Bf3 {[%clk 0:04:22.8]} 17... Qg6 {[%clk 0:03:33.9]} 18.
Nf4 {[%clk 0:04:21.3]} 18... Qf6 {[%clk 0:03:29.5]} 19. Rhe1 {[%clk 0:04:18.2]}
19... Nb6 {[%clk 0:03:15.1]} 20. Nh5 {[%clk 0:04:12.7]} 20... Qg6 {[%clk
0:03:03.5]} 21. Nf4 {[%clk 0:04:11.4]} 21... Qf6 {[%clk 0:03:02.1]} 22. b4
{[%clk 0:04:07.1]} 22... Nc4 {[%clk 0:03:00.9]} 23. Qd3 {[%clk 0:04:05.4]} 23...
Nxa3 {[%clk 0:02:35.1]} 24. bxa5 {[%clk 0:04:02.9]} 24... b6 {[%clk 0:02:15.6]}
25. Ncd5 {[%clk 0:04:00.8]} 25... Qf7 {[%clk 0:02:08.7]} 26. Qxa3 {[%clk
0:03:59.4]} 26... exd5 {[%clk 0:02:05.9]} 27. Rxe8+ {[%clk 0:03:58.1]} 27...
Qxe8 {[%clk 0:02:05.8]} 28. Nxd5 {[%clk 0:03:57.2]} 28... cxd5 {[%clk
0:02:01.6]} 29. Bxd5+ {[%clk 0:03:57.1]} 29... Kh8 {[%clk 0:01:59.1]} 30. Bxa8
{[%clk 0:03:55.4]} 30... Be6 {[%clk 0:01:57.8]} 31. Re1 {[%clk 0:03:53.5]} 31...
Qxa8 {[%clk 0:01:53.5]} 32. Rxe6 {[%clk 0:03:52.4]} 32... bxa5 {[%clk
0:01:45.1]} 33. Qe7 {[%clk 0:03:48.1]} 33... h6 {[%clk 0:01:44.2]} 34. Rxh6+
{[%clk 0:03:45.6]} 34... gxh6 {[%clk 0:01:41.3]} 35. Be5+ {[%clk 0:03:45.5]}
35... Kg8 {[%clk 0:01:39.3]} 36. Qg7# {[%clk 0:03:45.4]} 1-0

[Event "Live Chess"]
[Site "Chess.com"]
[Date "2023.05.21"]
[Round "-"]
[White "educatedlad"]
[Black "wadsy27"]
[Result "0-1"]
[WhiteElo "1624"]
[BlackElo "2539"]
[TimeControl "300"]
[EndTime "7:41:43 PDT"]
[Termination "wadsy27 won by checkmate"]

1. e4 {[%clk 0:04:59.2]} 1... c5 {[%clk 0:04:58]} 2. Nc3 {[%clk 0:04:56.7]} 2...
e6 {[%clk 0:04:56.8]} 3. d4 {[%clk 0:04:56.1]} 3... cxd4 {[%clk 0:04:55.9]} 4.
Qxd4 {[%clk 0:04:55.8]} 4... Nc6 {[%clk 0:04:55.3]} 5. Qe3 {[%clk 0:04:54.4]}
5... a6 {[%clk 0:04:51.4]} 6. b3 {[%clk 0:04:52.9]} 6... Qc7 {[%clk 0:04:49.6]}
7. Bb2 {[%clk 0:04:51.8]} 7... Nf6 {[%clk 0:04:48.7]} 8. O-O-O {[%clk
0:04:50.5]} 8... b5 {[%clk 0:04:46.2]} 9. Nd5 {[%clk 0:04:43]} 9... Nxd5 {[%clk
0:04:31.6]} 10. exd5 {[%clk 0:04:41.7]} 10... Nb4 {[%clk 0:04:30.9]} 11. Bd3
{[%clk 0:04:24.5]} 11... Nxd5 {[%clk 0:04:26.9]} 12. Qe2 {[%clk 0:04:16.8]}
12... Bb7 {[%clk 0:04:25.2]} 13. Nf3 {[%clk 0:04:15]} 13... Nc3 {[%clk
0:04:21.5]} 14. Bxc3 {[%clk 0:04:07.1]} 14... Qxc3 {[%clk 0:04:16.7]} 15. Kb1
{[%clk 0:04:06.5]} 15... Bxf3 {[%clk 0:04:08.3]} 16. gxf3 {[%clk 0:04:00.4]}
16... Ba3 {[%clk 0:04:07.1]} 17. Qe4 {[%clk 0:03:51.1]} 17... Qb2# {[%clk
0:04:05.5]} 0-1